fUSD/lending_fUSD_20250814
["ID","MTS","AMOUNT","RATE_DAILY","PERIOD"]
[379208861,1755186660419,-7303.94,0.00027397,2]
[379208862,1755186660428,-1586.31,0.00027397,2]
[379208863,1755186660438,-475.7,0.00027397,2]
[379208864,1755186660448,-400.0,0.00027397,2]
[379208865,1755186660457,-8036.66,0.00027397,2]
[379208866,1755186660467,-2224.48,0.00027397,2]
[379208867,1755186660480,-400.0,0.00027397,2]
[379208868,1755186660490,-13788.08,0.00027397,2]
[379208869,1755186660500,-1226.19,0.00027397,2]
[379208870,1755186660509,-679.52,0.00027397,2]
[379208871,1755186660521,-1681.36,0.00027397,2]
[379208872,1755186660531,-4852.42,0.00027397,2]
[379208873,1755186660544,-820.93,0.00027397,2]
[379208874,1755186660555,-5920.41,0.00027397,2]
[379208875,1755186660566,-491.11,0.00027397,2]
[379208876,1755186660577,-2520.31,0.00027397,2]
[379208877,1755186660587,-1944.05,0.00027397,2]
[379208878,1755186660598,-5952.4,0.00027397,2]
[379208879,1755186660609,-1250.86,0.00027397,2]
[379208880,1755186660620,-306.89,0.00027397,2]
[379208881,1755186660631,-15482.7,0.00027397,2]
[379208882,1755186660641,-630.17,0.00027397,2]
[379208883,1755186660652,-6256.69,0.00027397,2]
[379208884,1755186660665,-4254.53,0.00027397,2]
[379208885,1755186660681,-400.0,0.00027397,2]
[379208886,1755186660691,-959.2,0.00027397,2]
[379208887,1755186660701,-4107.3,0.00027397,2]
[379208888,1755186660711,-1778.15,0.00027397,2]
[379208889,1755186660721,-2983.25,0.00027397,2]
[379208890,1755186660732,-400.0,0.00027397,2]
[379208891,1755186660742,-8511.35,0.00027397,2]
[379208892,1755186660752,-400.0,0.00027397,2]
[379208893,1755186660762,-1814.86,0.00027397,2]
[379208894,1755186660771,-400.0,0.00027397,2]
[379208895,1755186660781,-400.0,0.00027397,2]
[379208896,1755186660794,-772.59,0.00027397,2]
[379208897,1755186660804,-1735.4,0.00027397,2]
[379208898,1755186660814,-400.0,0.00027397,2]
[379208899,1755186660823,-834.15,0.00027397,2]
[379208900,1755186660833,-1415.63,0.00027397,2]
[379208901,1755186660843,-854.46,0.00027397,2]
[379208902,1755186660852,-400.0,0.00027397,2]
[379208903,1755186660862,-549.88,0.00027397,2]
[379208904,1755186660871,-400.0,0.00027397,2]
[379208905,1755186660881,-709.54,0.00027397,2]
[379208906,1755186660891,-400.0,0.00027397,2]
[379208907,1755186660900,-580.45,0.00027397,2]
[379208908,1755186660909,-400.0,0.00027397,2]
[379208909,1755186660920,-400.0,0.00027397,2]
[379208910,1755186660930,-400.0,0.00027397,2]
[379208911,1755186660939,-752.16,0.00027397,2]
[379208912,1755186660949,-5290.85,0.00027397,2]
[379208913,1755186660959,-2840.3,0.00027397,14]
[379208914,1755186660968,-12244.25,0.00027397,2]
[379208915,1755186660978,-400.0,0.00027397,2]
[379208916,1755186660988,-479.93,0.00027397,2]
[379208917,1755186660998,-400.0,0.00027397,2]
[379208918,1755186661007,-514.89,0.00027397,2]
[379208919,1755186661017,-3170.04,0.00027397,2]
[379208920,1755186661027,-400.0,0.00027397,2]
[379208921,1755186661037,-907.07,0.00027397,2]
[379208922,1755186661048,-3524.13,0.00027397,2]
[379208923,1755186661058,-400.0,0.00027397,2]
[379208924,1755186661067,-402.56876129,0.00027397,2]
[379208925,1755186661077,-389.74809226,0.00027397,2]
[379208926,1755186661087,-1936.36,0.00027397,2]
[379208927,1755186661097,-6240.72,0.00027397,2]
[379208928,1755186661106,-400.0,0.00027397,2]
[379208929,1755186661115,-13341.11,0.00027397,2]
[379208930,1755186661125,-400.0,0.00027397,2]
[379208931,1755186661134,-400.0,0.00027397,2]
[379208932,1755186661143,-3494.51,0.00027397,2]
[379208933,1755186661154,-14694.17,0.00027397,2]
[379208934,1755186661164,-400.0,0.00027397,2]
[379208935,1755186661173,-6974.35,0.00027397,2]
[379208936,1755186661184,-1267.06,0.00027397,2]
[379208937,1755186661194,-2034.14,0.00027397,2]
[379208938,1755186661203,-400.0,0.00027397,2]
[379208939,1755186661212,-6021.77,0.00027397,2]
[379208940,1755186661222,-7716.49,0.00027397,2]
[379208941,1755186661231,-803.01,0.00027397,2]
[379208942,1755186661240,-400.0,0.00027397,2]
[379208943,1755186661250,-3126.29,0.00027397,2]
[379208944,1755186661259,-400.0,0.00027397,2]
[379208945,1755186661269,-781.06,0.00027397,2]
[379208946,1755186661279,-400.0,0.00027397,2]
[379208947,1755186661289,-400.0,0.00027397,2]
[379208948,1755186661301,-671.51,0.00027397,2]
[379208949,1755186661311,-408.05,0.00027397,2]
[379208950,1755186661322,-2449.35,0.00027397,2]
[379208951,1755186661332,-4832.44,0.00027397,2]
[379208952,1755186661341,-400.0,0.00027397,2]
[379208953,1755186661351,-614.68,0.00027397,2]
[379208954,1755186661363,-1000.62,0.00027397,2]
[379208955,1755186661372,-803.79,0.00027397,2]
[379208956,1755186661382,-400.0,0.00027397,2]
[379208957,1755186661392,-7423.44,0.00027397,2]
[379208958,1755186661401,-2035.53,0.00027397,2]
[379208959,1755186661411,-5687.33,0.00027397,2]
[379208960,1755186661421,-411.53,0.00027397,2]
[379208961,1755186661430,-1666.51,0.00027397,2]
[379208962,1755186661440,-400.0,0.00027397,2]
[379208963,1755186661450,-2546.52,0.00027397,2]
[379208964,1755186661460,-4978.83,0.00027397,2]
[379208965,1755186661473,-1785.81294984,0.00027397,2]
[379208966,1755186664195,-1172.28109998,0.00027397,2]
[379208967,1755186664441,-1186.15597446,0.00027397,2]
[379208968,1755186664453,-439.32964723,0.00027397,2]
[379208969,1755186666013,-1996.42032849,0.00027397,2]
[379208970,1755186666023,-1496.20713226,0.00027397,2]
[379208971,1755186666407,-4204.15286774,0.00027397,2]
[379208972,1755186666418,-401.04713228,0.00027397,2]
[379208976,1755186723051,250.0,0.00018753,2]
[379208978,1755186760606,-250.0,0.00018883,2]
[379208982,1755186774686,-183.38654232,0.00019526,2]
[379208984,1755186774710,-183.38654232,0.00019626,2]
[379208985,1755186774725,-33.22691536,0.00019626,2]
[379208986,1755186789678,-9.38654232,0.00019626,2]
[379208987,1755186789705,-200.0,0.00019903,2]
[379208988,1755186789724,-9.38654232,0.00019935,2]
[379208989,1755186789740,-200.0,0.00019935,2]
[379208990,1755186789754,-40.61345768,0.00019935,2]
[379208991,1755186789764,-47.54345768,0.00020208,2]
[379208992,1755186796821,-400.0,0.00020208,2]
[379208993,1755186804836,-52.45654232,0.00020208,2]
[379208994,1755186804870,-95.08691536,0.00020208,2]
[379208995,1755186806310,-52.45654232,0.00020208,2]
[379208996,1755186806326,-52.45654232,0.00020208,2]
[379208997,1755186806335,-147.54345768,0.00020208,2]
[379208999,1755186811785,-47.54345768,0.00020208,2]
[379209000,1755186811798,-304.91308464,0.00020208,2]
[379209001,1755186821536,163.84927483,0.00020108,2]
[379209002,1755186826777,163.84927482,0.00020163,2]
[379209004,1755186851348,342.29,0.00013699,2]
[379209005,1755186851466,57.71,0.00020187,2]
[379209006,1755186855593,-115.42,0.00020187,2]
[379209007,1755186855606,-169.16,0.00020187,2]
[379209008,1755186863065,-500.0,0.00020263,2]
[379209009,1755186863084,-500.0,0.00020318,2]
[379209010,1755186863096,-17.38,0.00020373,2]
[379209035,1755187224842,1252.72915904,0.00026,30]
[379209045,1755187303184,-151.0,0.00019257,2]
[379209046,1755187303208,-151.0,0.00019297,2]
[379209047,1755187303230,-151.0,0.00019323,2]
[379209048,1755187303254,-151.0,0.0001933,2]
[379209049,1755187303277,-151.0,0.00019333,2]
[379209050,1755187303300,-1200.0,0.00020608,2]
[379209051,1755187303324,-300.0,0.00020757,2]
[379209052,1755187303349,-300.0,0.00021146,2]
[379209053,1755187303373,-1000.0,0.00021148,2]
[379209054,1755187303397,-152.33,0.00021533,2]
[379209055,1755187303423,-326.93,0.00022,2]
[379209056,1755187303847,151.0,0.00019211,2]
[379209057,1755187306527,151.0,0.00019211,2]
[379209058,1755187307076,2000.0,0.00020008,30]
[379209062,1755187369755,2000.0,0.00020152,30]
[379209063,1755187370016,2000.0,0.00020152,30]
[379209064,1755187370235,2000.0,0.00020152,30]
[379209065,1755187370345,2000.0,0.00020152,30]
[379209066,1755187371072,1999.105,0.00020152,30]
[379209068,1755187443772,-49.0,0.0001914,2]
[379209069,1755187450848,-81.38654232,0.0001914,2]
[379209078,1755187652434,883.08,0.00024685,30]
[379209093,1755187748557,507.84417932,0.0002,3]
[379209095,1755187793083,2000.0,0.00020154,30]
[379209096,1755187793193,1945.21,0.00020154,30]
[379209098,1755187822957,995.08741,0.00026,30]
[379209099,1755187823203,995.08741,0.00026,30]
[379209100,1755187828265,995.08741,0.00026,30]
[379209101,1755187828555,995.08741,0.00026,30]
[379209102,1755187828864,995.08741,0.00026,30]
[379209108,1755187832055,-1000.0,0.00019126,2]
[379209109,1755187832067,-292.74999753,0.00019347,2]
[379209110,1755187832078,-689.37720161,0.00019347,2]
[379209111,1755187832089,-40.86137573,0.00019347,2]
[379209112,1755187832099,-1000.0,0.00019586,2]
[379209113,1755187832110,-151.0,0.00019597,2]
[379209114,1755187832119,-107.89212425,0.0001965,2]
[379209115,1755187832196,-43.10787575,0.0001965,2]
[379209116,1755187832206,-151.0,0.00019662,2]
[379209117,1755187832216,-151.0,0.0001969,2]
[379209118,1755187832227,-17371.39212425,0.00021,2]
[379209135,1755187839040,-232628.60787575,0.00021,2]
[379209136,1755187839050,-1000.0,0.00021024,2]
[379209137,1755187839060,-250.0,0.00021024,2]
[379209138,1755187839070,-45546.0,0.000211,2]
[379209139,1755187839080,-1000.0,0.00021204,2]
[379209140,1755187839090,-500.0,0.00021204,2]
[379209141,1755187839100,-250.0,0.00021204,2]
[379209142,1755187839110,-5513.0,0.000215,3]
[379209143,1755187839120,-290.61,0.00022,2]
[379209144,1755187839130,-1200.0,0.00022239,2]
[379209145,1755187839140,-303.24,0.0002224,2]
[379209146,1755187839150,-152.63,0.0002224,2]
[379209147,1755187839160,-300.06,0.0002224,2]
[379209148,1755187839169,-556.0,0.00023,2]
[379209149,1755187839179,-556.0,0.00023576,2]
[379209150,1755187839188,-154.1,0.00023638,2]
[379209151,1755187839199,-491.16,0.00023679,2]
[379209152,1755187839208,-200.0,0.00023814,2]
[379209153,1755187839218,-500.0,0.00023886,2]
[379209154,1755187839228,-297.41101602,0.00023886,2]
[379209155,1755187839238,-150.0,0.00023897,2]
[379209156,1755187839247,-500.0,0.00023941,2]
[379209157,1755187839261,-666.0,0.00023973,3]
[379209158,1755187839271,-500.0,0.00023996,2]
[379209159,1755187839281,-1991.49,0.00024018,2]
[379209160,1755187839291,-500.0,0.00024051,2]
[379209161,1755187839301,-1000.0,0.00024061,2]
[379209162,1755187839311,-250.0,0.00024101,2]
[379209163,1755187839320,-500.0,0.00024106,2]
[379209164,1755187839330,-556.0,0.00024152,3]
[379209165,1755187839340,-500.0,0.00024161,2]
[379209166,1755187839351,-465.31,0.00024162,2]
[379209167,1755187839361,-150.0,0.00024162,2]
[379209168,1755187839371,-290.61,0.00024178,2]
[379209169,1755187839381,-170.0,0.00024212,7]
[379209170,1755187839390,-500.0,0.00024216,2]
[379209171,1755187839400,-500.0,0.00024271,2]
[379209172,1755187839410,-1680.0,0.00024273,2]
[379209173,1755187839420,-200.0,0.00024303,2]
[379209174,1755187839430,-538.81,0.00024304,2]
[379209175,1755187839439,-500.0,0.00024326,2]
[379209176,1755187839449,-797.56,0.00024341,2]
[379209177,1755187839459,-500.0,0.00024381,2]
[379209178,1755187839468,-500.0,0.00024436,2]
[379209180,1755187839478,-500.0,0.00024545,2]
[379209182,1755187839488,-891.6,0.000246,2]
[379209184,1755187839498,-190.05,0.00024609,2]
[379209186,1755187839511,-5000.0,0.00024642,2]
[379209188,1755187839520,-447.54345768,0.00024658,15]
[379209190,1755187839530,-2000.0,0.00024658,15]
[379209192,1755187839540,-1000.0,0.00024658,2]
[379209195,1755187839551,-556.0,0.00024727,3]
[379209197,1755187839560,-150.0,0.00024751,2]
[379209199,1755187839570,-154.1,0.0002482,2]
[379209201,1755187839581,-305.11270174,0.00024864,2]
[379209203,1755187839591,-357.84823043,0.00024976,2]
[379209205,1755187839601,-29999.99,0.0002498,2]
[379209207,1755187839611,-159.28,0.00025058,2]
[379209209,1755187839621,-410.58375913,0.00025089,2]
[379209211,1755187839631,-463.31928782,0.00025202,2]
[379209213,1755187839641,-538.81,0.00025215,2]
[379209215,1755187839651,-250.0,0.00025238,2]
[379209217,1755187839661,-556.0,0.00025303,4]
[379209219,1755187839671,-516.05481652,0.00025315,2]
[379209221,1755187839680,-568.79034521,0.00025427,2]
[379209223,1755187839691,-621.52587391,0.0002554,2]
[379209225,1755187839701,-150.0,0.0002558,2]
[379209227,1755187839711,-674.2614026,0.00025653,2]
[379209229,1755187839720,-3757.6229,0.00025686,2]
[379209231,1755187839730,-850.9165,0.00025686,2]
[379209233,1755187839740,-5587.44397055,0.00025686,2]
[379209234,1755187839753,-7778.70892806,0.00025686,2]
[379209235,1755187839772,-726.9969313,0.00025766,2]
[379209236,1755187839782,-9999.99,0.00025786,2]
[379209237,1755187839792,-9999.99,0.00025786,2]
[379209238,1755187839802,-9999.99,0.00025786,2]
[379209239,1755187839812,-999.99,0.00025786,2]
[379209240,1755187839822,-712.03,0.00025786,2]
[379209241,1755187839834,-150.99,0.00025786,2]
[379209242,1755187839845,-1498.53,0.00025786,2]
[379209243,1755187839855,-57900.84092053,0.00025786,2]
[379209245,1755187839867,-281.97057258,0.00025786,2]
[379209246,1755187839879,-1022.98857487,0.00025786,2]
[379209248,1755187840003,-686.475,0.00025786,2]
[379209249,1755187840019,-9174.69755466,0.00025786,2]
[379209250,1755187840031,-917.0,0.00025786,2]
[379209297,1755187841030,-151.0,0.00019608,2]
[379209298,1755187841040,-716.76952858,0.00021104,2]
[379209299,1755187841050,-13037.88578794,0.00025786,2]
[379209300,1755187841190,-53406.75158942,0.00025786,2]
[379209301,1755187841200,-150.99,0.00025786,2]
[379209302,1755187841210,-289.37,0.00025786,2]
[379209303,1755187841219,-160.38332307,0.0002579,2]
[379209304,1755187841229,-13366.15289853,0.00025865,2]
[379209305,1755187841238,-779.73245999,0.00025878,2]
[379209306,1755187841247,-556.0,0.00025879,4]
[379209307,1755187841261,-832.46798869,0.00025991,2]
[379209308,1755187841271,-1836.0,0.00025997,2]
[379209309,1755187841280,-1226.234527,0.00026,2]
[379209310,1755187841290,-154.1,0.00026001,2]
[379209311,1755187841300,-3000.0,0.00026037,2]
[379209312,1755187841310,-500.0,0.00026037,2]
[379209313,1755187841319,-500.0,0.00026037,2]
[379209314,1755187841329,-500.0,0.00026037,2]
[379209315,1755187841339,-160.0,0.00026037,2]
[379209316,1755187841349,-500.0,0.00026037,2]
[379209317,1755187841359,-584.93012321,0.00026037,2]
[379209318,1755187841368,-600.0,0.00026037,2]
[379209319,1755187841378,-300.0,0.00026037,2]
[379209320,1755187841387,-151.0,0.00026037,2]
[379209321,1755187841397,-500.0,0.00026037,2]
[379209322,1755187841407,-500.0,0.00026037,2]
[379209323,1755187841416,-500.0,0.00026037,2]
[379209324,1755187841426,-500.0,0.00026037,2]
[379209325,1755187841436,-151.0,0.00026037,2]
[379209326,1755187841446,-500.0,0.00026037,2]
[379209327,1755187841455,-500.0,0.00026037,2]
[379209328,1755187841465,-537.99925527,0.00026037,2]
[379209329,1755187841475,-277.35679052,0.00026037,2]
[379209330,1755187841485,-13366.15289853,0.00026044,2]
[379209331,1755187841495,-885.20351738,0.00026104,2]
[379209332,1755187841504,-538.81,0.00026127,2]
[379209333,1755187841519,-937.93904608,0.00026217,2]
[379209334,1755187841528,-13366.15289853,0.00026223,2]
[379209335,1755187841539,-1836.0,0.00026289,7]
[379209336,1755187841548,-990.67457478,0.00026329,2]
[379209337,1755187841558,-290.61,0.00026356,7]
[379209338,1755187841567,-527.16,0.00026395,3]
[379209339,1755187841577,-13366.15289853,0.00026402,2]
[379209340,1755187841587,-1000.0,0.00026405,2]
[379209341,1755187841597,-2500.0,0.00026405,2]
[379209342,1755187841606,-963.94287424,0.00026427,10]
[379209343,1755187841615,-1043.41010347,0.00026442,2]
[379209344,1755187841625,-556.0,0.00026455,5]
[379209345,1755187841635,-2351.0,0.00026494,2]
[379209346,1755187841644,-1500.0,0.00026505,2]
[379209347,1755187841654,-1000.0,0.00026505,2]
[379209348,1755187841663,-34532.0512,0.00026505,2]
[379209349,1755187841673,-274.77000692,0.00026506,2]
[379209350,1755187841683,-165.56,0.00026527,2]
[379209351,1755187841692,-194.82,0.00026527,120]
[379209352,1755187841702,-1096.14563217,0.00026555,2]
[379209353,1755187841712,-13366.15289853,0.00026581,2]
[379209354,1755187841721,-600.0,0.00026585,2]
[379209355,1755187841731,-151.0,0.00026585,2]
[379209356,1755187841742,-151.0,0.00026585,2]
[379209357,1755187841751,-65408.4940567,0.00026595,2]
[379209358,1755187841765,-13081.6988113,0.00026599,2]
[379209359,1755187841775,-350.03396524,0.00026605,2]
[379209360,1755187841785,-148425.33616763,0.00026605,2]
[379209361,1755187841794,-5000.0,0.00026612,2]
[379209362,1755187841804,-1148.88116086,0.00026668,2]
[379209363,1755187841813,-342.29,0.00026676,2]
[379209364,1755187841827,-91571.8916794,0.00026696,2]
[379209365,1755187841837,-29033.4554161,0.00026696,2]
[379209366,1755187841846,-2418.0,0.00026702,2]
[379209367,1755187841858,-13081.6988113,0.00026702,2]
[379209368,1755187841869,-9677.81847203,0.00026702,2]
[379209369,1755187841880,-190310.13,0.00026706,2]
[379209370,1755187841890,-168.0,0.00026753,2]
[379209371,1755187841900,-13366.15289853,0.0002676,2]
[379209372,1755187841911,-9677.81847203,0.0002677,2]
[379209373,1755187841921,-1201.61668956,0.0002678,2]
[379209374,1755187841931,-991.0,0.000268,2]
[379209375,1755187841940,-158.74915512,0.00026803,2]
[379209376,1755187841951,-13081.6988113,0.00026805,2]
[379209377,1755187841960,-9677.81847203,0.00026805,2]
[379209378,1755187841970,-1000.0,0.00026849,14]
[379209379,1755187841980,-2987.0,0.00026867,2]
[379209380,1755187841990,-1254.35221825,0.00026893,2]
[379209381,1755187842001,-117735.289302,0.00026893,2]
[379209382,1755187842013,-251623.280273,0.00026893,2]
[379209383,1755187842023,-205.8266855,0.00026903,2]
[379209384,1755187842033,-303893.9956249,0.00026903,2]
[379209385,1755187842042,-151946.9978125,0.00026903,2]
[379209386,1755187842052,-323612.4118872,0.00026903,2]
[379209387,1755187842062,-1231.563253,0.00026903,7]
[379209388,1755187842072,-1231.563253,0.00026903,7]
[379209389,1755187842082,-933.3539689,0.00026908,2]
[379209390,1755187842092,-13366.15289853,0.00026939,2]
[379209391,1755187842101,-150.0,0.0002695,2]
[379209392,1755187842111,-158.74915512,0.00026984,2]
[379209393,1755187842121,-4155.0,0.00027,2]
[379209394,1755187842130,-156.0,0.00027,7]
[379209395,1755187842140,-980.52709368,0.00027022,2]
[379209396,1755187842150,-556.0,0.0002703,6]
[379209397,1755187842161,-538.81,0.00027038,2]
[379209398,1755187842171,-1000.0,0.00027069,2]
[379209399,1755187842181,-839.49,0.000271,2]
[379209400,1755187842191,-13366.15289853,0.00027118,2]
[379209401,1755187842201,-2987.0,0.0002712,7]
[379209402,1755187842211,-1000.0,0.00027123,14]
[379209403,1755187842221,-26872.53118584,0.00027125,2]
[379209404,1755187842231,-159.28,0.00027126,2]
[379209405,1755187842240,-74879.67756928,0.0002713,2]
[379209406,1755187842254,-2369.5296,0.0002713,2]
[379209407,1755187842604,-39081.19986387,0.0002713,2]
[379209410,1755187844991,-716.76952855,0.00022028,2]
[379209451,1755187846314,-262.12898365,0.0002713,2]
[379209464,1755187846451,-386.15245732,0.0002713,2]
[379209830,1755188016035,-465.31,0.00027182,120]
[379209831,1755188017567,-194.82,0.00029843,120]
[379209832,1755188017747,-2012.9676959,0.00030137,120]
[379209833,1755188017776,-4147.72221539,0.00030137,120]
[379209834,1755188017805,-3423217.624362,0.00030137,120]
[379209835,1755188017834,-569961.55572671,0.00030137,120]
[379209836,1755188023598,-2850913.06863529,0.00030137,120]
[379209837,1755188024444,333.18,0.00013699,2]
[379209838,1755188037760,-5000000.0,0.00039425,30]
[379209842,1755188051951,297.29,0.00018005,2]
[379209843,1755188054681,-183.38654232,0.00019158,2]
[379209847,1755188179451,-5000000.0,0.0003943,30]
[379209849,1755188275081,707.0,0.00026,30]
[379209850,1755188275845,493.0,0.00026,30]
[379209851,1755188276682,1525.0,0.00026,30]
[379209852,1755188279771,150.0,0.00024,120]
[379209853,1755188285049,343.0,0.00026,30]
[379209854,1755188285853,441.0,0.00026,30]
[379209855,1755188287310,391.0,0.00026,30]
[379209858,1755188318579,91338.71075861,0.0002999,120]
[379209859,1755188322729,504.0,0.00026,30]
[379209860,1755188323056,1583.0,0.00026,30]
[379209861,1755188323542,200.0,0.0003,120]
[379209862,1755188328879,989.0,0.00026893,120]
[379209863,1755188329345,989.0,0.00026883,120]
[379209864,1755188329827,989.0,0.00026873,120]
[379209865,1755188329902,279.0,0.00026,30]
[379209866,1755188330250,989.0,0.00027523,120]
[379209867,1755188331130,989.0,0.00027513,120]
[379209868,1755188331369,989.0,0.00027503,120]
[379209869,1755188331618,989.0,0.00027798,120]
[379209870,1755188332094,989.0,0.00027788,120]
[379209871,1755188332534,989.0,0.000282,120]
[379209872,1755188333895,995.9,0.0002819,120]
[379209875,1755188403976,384.5384391,0.0003,120]
[379209876,1755188417424,300.0,0.0003,120]
[379209877,1755188432036,300.0,0.0003,120]
[379209878,1755188448814,150.5,0.0002693,120]
[379209879,1755188449112,150.5,0.0002692,120]
[379209881,1755188449411,150.5,0.0002691,120]
[379209882,1755188449931,150.5,0.00027524,120]
[379209883,1755188450667,150.5,0.00027514,120]
[379209884,1755188450946,190.46,0.00027504,120]
[379209885,1755188451710,300.0,0.0003,120]
[379209886,1755188462297,300.0,0.0003,120]
[379209889,1755188494313,188.81533204,0.00030132,120]
[379209894,1755188522548,300.0,0.00028167,120]
[379209895,1755188523237,450.0,0.00029537,120]
[379209896,1755188525397,210.0,0.00030135,120]
[379209897,1755188556707,210.35046549,0.00030136,120]
[379209899,1755188576568,609.16579653,0.00030136,120]
[379209900,1755188583851,2000.0,0.00024215,120]
[379209902,1755188607054,2012.9676959,0.00030136,120]
[379209906,1755188643284,150.0,0.00024,120]
[379209909,1755188699779,3513.0,0.00030136,120]
[379209910,1755188726430,1643.42522855,0.000299,120]
[379209913,1755188746512,3706.11457817,0.0001995,15]
[379209914,1755188757862,1320.81,0.00026837,120]
[379209915,1755188758142,1320.81,0.00029819,120]
[379209916,1755188765253,1092.45458532,0.0003,120]
[379209917,1755188772567,1800.0,0.0003013,120]
[379209918,1755188779991,809.49,0.00024685,30]
[379209920,1755188805241,13474.82249139,0.00018,3]
[379209921,1755188821623,248.8056417,0.0003013,120]
[379209922,1755188828798,652.69135369,0.0003,120]
[379209923,1755188864885,77835.70884051,0.0002,5]
[379210037,1755188889734,343.21999885,0.0003013,120]
[379210043,1755188896403,192.1745125,0.00030137,120]
[379210051,1755188913267,736.00660795,0.0003,120]
[379210052,1755188913679,661.43083947,0.0003013,120]
[379210054,1755188914260,345.0,0.0003,120]
[379210059,1755188925184,451.24249369,0.0003013,120]
[379210089,1755188978776,436.77957111,0.00017559,2]
[379210090,1755188979015,150.0,0.0001748,2]
[379210091,1755188979269,512.27233649,0.00017639,2]
[379210092,1755188979630,587.76510187,0.00017718,2]
[379210094,1755188979989,663.25786725,0.00017798,2]
[379210095,1755188980347,814.243398,0.00017957,2]
[379210096,1755188981095,738.75063262,0.00017877,2]
[379210110,1755189024737,183.38654232,0.00017936,2]
[379210133,1755189032105,-327.69854965,0.00018016,2]
[379210134,1755189032118,-142.03677961,0.00018036,2]
[379210135,1755189032131,-485.50000004,0.00018036,2]
[379210136,1755189032144,-262.19938373,0.00018036,2]
[379210137,1755189032164,-965.22892876,0.00018116,2]
[379210138,1755189032177,-1040.72169414,0.00018195,2]
[379210139,1755189032187,-694.54999337,0.00018275,2]
[379210140,1755189032288,-421.66446614,0.00018275,2]
[379210141,1755189032298,-331.50054631,0.00018354,2]
[379210142,1755189032309,-799.6342212,0.00018354,2]
[379210143,1755189032491,-60.57245738,0.00018354,2]
[379210144,1755189032501,-1267.19999027,0.00018434,2]
[379210145,1755189032511,-1342.69275565,0.00018513,2]
[379210146,1755189032521,-1418.18552102,0.00018593,2]
[379210147,1755189032531,-1493.6782864,0.00018672,2]
[379210148,1755189032541,-1569.17105178,0.00018752,2]
[379210149,1755189032551,-1644.66381716,0.00018831,2]
[379210150,1755189032561,-353.83620176,0.000189,2]
[379210151,1755189032573,-7751.58937302,0.000189,2]
[379210152,1755189032585,-595.15839325,0.000189,2]
[379210153,1755189032595,-778.40738839,0.000189,2]
[379210154,1755189032606,-1720.15658253,0.00018911,2]
[379210155,1755189032616,-1795.64934792,0.0001899,2]
[379210156,1755189032626,-54962.76133916,0.00019,2]
[379210205,1755189033254,-117759.99999999,0.00019,2]
[379210219,1755189038395,-133802.60147043,0.00019,2]
[379210220,1755189038406,-374.88846551,0.00019,2]
[379210221,1755189038416,-1000.0,0.00019075,2]
[379210222,1755189038427,-152.72,0.00019125,2]
[379210223,1755189038436,-151.0,0.00019134,2]
[379210224,1755189038447,-151.0,0.00019156,2]
[379210225,1755189038457,-2680.08470785,0.0001917,2]
[379210226,1755189038467,-151.0,0.00019183,2]
[379210227,1755189038477,-151.0,0.00019186,2]
[379210228,1755189038486,-8105.42557473,0.00019833,2]
[379210229,1755189038497,-4818.92562448,0.000199,3]
[379210230,1755189038506,-167.09779323,0.000199,2]
[379210231,1755189038516,-514.0,0.0001997,2]